bitfinex/quotes_SOLUSD_20250622
["timestamp","ask_amount","ask_price","bid_price","bid_amount"]
[1750567206822,10.89044175,135.72,135.63,4.42380004]
[1750567206823,12.40164175,135.7,135.63,4.42380004]
[1750567207013,1.5112,135.7,135.63,15.48330015]
[1750567207217,19.10164175,135.7,135.66,26.0]
[1750567207520,19.10164175,135.7,135.67,18.64964886]
[1750567207918,6.7,135.72,135.7,18.64964886]
[1750567208326,6.7,135.72,135.71,23.0708411]
[1750567209131,17.59044175,135.72,135.71,23.0708411]
[1750567209637,17.59044175,135.72,135.71,18.64964886]
[1750567210427,17.59044175,135.72,135.71,23.0708411]
[1750567211944,17.59044175,135.72,135.71,18.64964886]
[1750567213740,17.59044175,135.72,135.71,23.0708411]
[1750567214129,6.7,135.72,135.71,23.0708411]
[1750567217719,17.59044175,135.72,135.71,23.0708411]
[1750567218148,17.59044175,135.72,135.71,18.64964886]
[1750567218752,17.59044175,135.72,135.69,26.0]
[1750567218753,17.59044175,135.72,135.6,33.12397256]
[1750567218926,10.89044175,135.67,135.63,10.89044175]
[1750567219126,10.89044175,135.69,135.66,18.64964886]
[1750567219427,10.89044175,135.7,135.66,18.64964886]
[1750567220244,10.89044175,135.7,135.67,4.42249576]
[1750567220444,10.89044175,135.7,135.68,18.64964886]
[1750567220650,10.89044175,135.69,135.68,18.64964886]
[1750567221727,10.89044175,135.69,135.66,23.07236127]
[1750567221927,10.89044175,135.68,135.66,23.07236127]
[1750567224121,30.54,135.71,135.62,11.06031481]
[1750567224122,10.89044175,135.67,135.65,44.64964886]
[1750567224326,10.89044175,135.66,135.65,44.64964886]
[1750567225138,10.89044175,135.66,135.65,49.07279666]
[1750567225743,30.54,135.67,135.65,49.07279666]
[1750567225946,10.89044175,135.66,135.65,49.07279666]
[1750567226141,41.43044175,135.67,135.65,49.07279666]
[1750567227744,10.89044175,135.66,135.65,49.07279666]
[1750567229228,10.89044175,135.66,135.65,18.64964886]
[1750567230270,41.43044175,135.67,135.65,18.64964886]
[1750567230967,41.43044175,135.67,135.65,4.42292425]
[1750567231267,10.89044175,135.66,135.65,4.42292425]
[1750567232062,10.89044175,135.66,135.65,18.64964886]
[1750567233268,10.89044175,135.66,135.65,4.4231478]
[1750567233567,30.54,135.67,135.65,4.4231478]
[1750567233736,10.89044175,135.66,135.65,4.4231478]
[1750567234454,10.89044175,135.66,135.65,18.64964886]
[1750567235068,10.89044175,135.66,135.64,18.64964886]
[1750567235568,10.89044175,135.65,135.64,18.64964886]
[1750567235763,10.89044175,135.65,135.63,18.64964886]
[1750567235996,6.7,135.66,135.63,18.64964886]
[1750567235997,41.43044175,135.64,135.63,18.64964886]
[1750567236300,41.43044175,135.64,135.58,23.07508033]
[1750567236586,10.89044175,135.63,135.59,18.64964886]
[1750567236895,10.89044175,135.63,135.59,44.64964886]
[1750567237084,10.89044175,135.63,135.6,4.42477876]
[1750567237260,10.89044175,135.62,135.6,4.42477876]
[1750567237981,30.54,135.64,135.6,4.42477876]
[1750567238167,10.89044175,135.63,135.6,4.42477876]
[1750567239096,10.89044175,135.62,135.6,4.42477876]
[1750567239281,10.89044175,135.61,135.6,4.42477876]
[1750567240072,30.54,135.64,135.6,4.42477876]
[1750567240278,10.89044175,135.62,135.6,4.42477876]
[1750567241500,10.89044175,135.61,135.6,4.42477876]
[1750567242093,10.89044175,135.63,135.6,4.42477876]
[1750567243196,10.89044175,135.62,135.6,4.42477876]
[1750567244304,6.0071,135.67,135.61,18.64964886]
[1750567244476,10.89044175,135.65,135.61,18.64964886]
[1750567244675,10.89044175,135.65,135.62,5.89883498]
[1750567246174,10.89044175,135.64,135.62,5.89883498]
[1750567246411,6.7,135.66,135.62,5.89883498]
[1750567246616,17.59044175,135.66,135.65,18.64964886]
[1750567248188,17.59044175,135.66,135.63,5.8983192]
[1750567248484,10.89044175,135.65,135.63,5.8983192]
[1750567248887,41.45044175,135.64,135.56,31.54456473]
[1750567249084,10.89044175,135.6,135.57,18.64964886]
[1750567249302,30.56,135.64,135.6,18.64964886]
[1750567249597,10.89044175,135.61,135.6,18.64964886]
[1750567249894,10.89044175,135.62,135.6,50.54935387]
[1750567250475,30.56,135.64,135.6,50.54935387]
[1750567250805,41.45044175,135.64,135.6,76.18905815]
[1750567251005,10.89044175,135.64,135.6,76.18905815]
[1750567251304,17.59044175,135.65,135.63,26.0]
[1750567251506,1.6471,135.68,135.64,18.64964886]
[1750567251707,12.29559128,135.71,135.64,18.64964886]
[1750567251708,48.15044175,135.69,135.64,29.54009061]
[1750567252009,10.89044175,135.68,135.66,18.64964886]
[1750567252478,10.89044175,135.67,135.66,18.64964886]
[1750567253696,41.45044175,135.67,135.64,18.64964886]
[1750567254003,10.89044175,135.65,135.64,18.64964886]
[1750567258793,10.89044175,135.65,135.64,24.54761406]
[1750567259586,10.89044175,135.65,135.64,18.64964886]
[1750567260109,10.89044175,135.65,135.62,5.89877949]
[1750567260313,10.89044175,135.63,135.62,24.54842835]
[1750567260812,30.54,135.64,135.63,18.64964886]
[1750567261003,41.43044175,135.64,135.59,50.54978898]
[1750567261202,10.89044175,135.62,135.59,50.54978898]
[1750567264691,41.43044175,135.64,135.59,76.19058105]
[1750567265094,10.89044175,135.63,135.59,76.19058105]
[1750567265593,10.89044175,135.63,135.59,65.3001393]
[1750567267321,10.89044175,135.62,135.59,65.3001393]
[1750567268330,30.54,135.64,135.59,65.3001393]
[1750567268508,10.89044175,135.63,135.59,65.3001393]
[1750567269624,30.54,135.64,135.59,65.3001393]
[1750567269807,10.89044175,135.63,135.59,65.3001393]
[1750567274433,10.89044175,135.62,135.61,26.0]
[1750567274600,10.89044175,135.62,135.61,44.64964886]
[1750567276424,10.89044175,135.62,135.61,50.54891882]
[1750567276918,30.54,135.64,135.62,18.64964886]
[1750567277099,10.89044175,135.63,135.62,18.64964886]
[1750567278525,10.89044175,135.63,135.62,24.54848384]
[1750567279599,10.89044175,135.63,135.62,18.64964886]
[1750567279801,10.89044175,135.63,135.61,5.89921445]
[1750567280023,10.89044175,135.62,135.61,5.89921445]
[1750567281705,10.89044175,135.63,135.61,5.89921445]
[1750567284419,30.54,135.64,135.61,5.89921445]
[1750567284610,30.54,135.64,135.6,18.64964886]
[1750567284611,41.43044175,135.64,135.62,5.89843123]
[1750567285408,30.54,135.64,135.62,5.89843123]
[1750567285605,41.43044175,135.64,135.62,5.89843123]
[1750567286905,10.89044175,135.63,135.62,44.64964886]
[1750567288522,10.89044175,135.63,135.62,5.89883498]
[1750567288727,10.89044175,135.63,135.6,18.64964886]
[1750567288936,10.89044175,135.61,135.6,18.64964886]
[1750567290521,10.89044175,135.61,135.58,31.90056825]
[1750567290723,10.89044175,135.61,135.55,24.55153008]
[1750567290724,10.89044175,135.59,135.55,24.55153008]
[1750567290904,47.50744175,135.6,135.53,1.6303656]
[1750567290905,10.89044175,135.56,135.53,1.6303656]
[1750567291107,10.89044175,135.54,135.53,33.53311775]
[1750567291310,10.89044175,135.54,135.53,27.6303656]
[1750567291629,38.7628,135.56,135.53,52.18267408]
[1750567291803,38.7628,135.56,135.54,18.64964886]
[1750567291804,10.89044175,135.56,135.54,18.64964886]
[1750567292004,48.13044175,135.57,135.54,18.64964886]
[1750567292604,10.89044175,135.56,135.55,5.90188122]
[1750567293216,48.13044175,135.57,135.55,5.90188122]
[1750567295315,10.89044175,135.56,135.54,24.55191176]
[1750567295615,41.43044175,135.55,135.54,24.55191176]
[1750567298531,41.43044175,135.55,135.54,18.64964886]
[1750567298843,41.43044175,135.55,135.53,1.6303656]
[1750567299049,10.89044175,135.54,135.53,7.53310774]
[1750567299211,10.89044175,135.54,135.53,1.6303656]
[1750567300717,1.5228,135.59,135.54,18.64964886]
[1750567300925,10.89044175,135.58,135.54,18.64964886]
[1750567301233,32.0628,135.59,135.54,18.64964886]
[1750567301447,10.89044175,135.57,135.56,18.64964886]
[1750567301819,41.43044175,135.57,135.56,18.64964886]
[1750567302546,41.43044175,135.57,135.56,5.90144585]
[1750567303826,30.54,135.57,135.56,18.64964886]
[1750567304035,41.43044175,135.57,135.56,18.64964886]
[1750567304926,41.43044175,135.57,135.56,5.90144585]
[1750567305738,10.89044175,135.57,135.56,5.90144585]
[1750567306619,41.43044175,135.58,135.56,5.90144585]
[1750567307025,10.89044175,135.58,135.56,18.64964886]
[1750567309368,6.7,135.6,135.58,18.64964886]
[1750567309528,41.43044175,135.59,135.58,18.64964886]
[1750567311033,41.43044175,135.59,135.57,5.90101054]
[1750567311229,30.54,135.59,135.57,5.90101054]
[1750567311433,10.89044175,135.59,135.57,5.90101054]
[1750567312162,17.59044175,135.6,135.57,5.90101054]
[1750567312630,6.7,135.6,135.57,5.90101054]
[1750567312827,17.59044175,135.6,135.57,5.90101054]
[1750567313131,10.89044175,135.59,135.57,5.90101054]
[1750567314244,10.89044175,135.58,135.57,5.90101054]
[1750567316865,41.43044175,135.58,135.57,5.90101054]
[1750567317043,41.43044175,135.58,135.56,5.9013398]
[1750567317251,30.54,135.58,135.57,18.64964886]
[1750567317437,41.43044175,135.58,135.57,18.64964886]
[1750567326083,41.43044175,135.58,135.57,5.90101054]
[1750567326285,41.43044175,135.58,135.56,18.64964886]
[1750567326460,10.89044175,135.57,135.56,18.64964886]
[1750567327459,10.89044175,135.57,135.55,18.64964886]
[1750567327659,41.43044175,135.56,135.55,18.64964886]
[1750567328267,41.43044175,135.56,135.53,33.53298371]
[1750567328453,30.54,135.56,135.54,18.64964886]
[1750567328658,10.89044175,135.55,135.54,18.64964886]
[1750567329362,10.89044175,135.55,135.54,24.55196551]
[1750567331994,10.89044175,135.55,135.54,18.64964886]
[1750567332588,10.89044175,135.55,135.54,24.55196551]
[1750567335773,48.13044175,135.58,135.54,24.55196551]
[1750567336592,37.24,135.58,135.54,24.55196551]
[1750567336775,48.13044175,135.58,135.54,24.55196551]
[1750567337891,17.59044175,135.58,135.54,24.55196551]
[1750567338077,48.13044175,135.58,135.54,24.55196551]
[1750567340067,10.89044175,135.57,135.54,24.55196551]
[1750567341485,48.13044175,135.58,135.54,24.55196551]
[1750567341683,48.13044175,135.58,135.54,39.30775715]
[1750567345866,37.24,135.58,135.54,39.30775715]
[1750567346166,48.13044175,135.58,135.54,39.30775715]
[1750567349897,8.32041997,135.61,135.54,39.30775715]
[1750567350111,10.89044175,135.56,135.54,24.55196551]
[1750567350397,41.41044175,135.55,135.54,18.64964886]
[1750567350976,46.93422929,135.55,135.54,18.64964886]
[1750567352918,52.83611051,135.55,135.53,1.6303656]
[1750567353214,23.09422929,135.54,135.53,20.28001446]
[1750567353989,23.09422929,135.54,135.53,1.6303656]
[1750567354205,28.99654594,135.54,135.53,1.6303656]
[1750567354908,10.89044175,135.49,135.48,18.64964886]
[1750567355076,41.41044175,135.49,135.48,18.64964886]
[1750567356881,41.41044175,135.49,135.48,24.55457947]
[1750567357089,41.41044175,135.49,135.48,5.90493061]
[1750567358003,30.52,135.49,135.48,18.64964886]
[1750567358200,41.41044175,135.49,135.48,18.64964886]
[1750567358993,41.41044175,135.49,135.48,24.55457947]
[1750567359310,41.41044175,135.49,135.48,5.90493061]
[1750567361312,10.89044175,135.49,135.48,18.64964886]
[1750567362980,10.89044175,135.49,135.47,18.64964886]
[1750567363185,41.41044175,135.48,135.47,18.64964886]
[1750567363398,48.09044175,135.48,135.47,18.64964886]
[1750567364305,48.09044175,135.48,135.46,24.55538737]
[1750567364497,10.89044175,135.47,135.46,24.55538737]
[1750567368596,48.09044175,135.48,135.47,24.55501536]
[1750567374512,6.68,135.48,135.47,24.55501536]
[1750567374725,10.89044175,135.53,135.51,18.64964886]
[1750567374890,10.89044175,135.53,135.52,5.90318772]
[1750567375415,6.68,135.55,135.52,24.55283658]
[1750567375625,30.52,135.54,135.52,24.55283658]
[1750567375925,48.09044175,135.55,135.53,18.64964886]
[1750567376295,10.89044175,135.54,135.53,18.64964886]
[1750567377391,10.89044175,135.54,135.53,5.90275215]
[1750567377609,10.89044175,135.54,135.52,24.55272171]
[1750567377801,41.41044175,135.53,135.52,24.55272171]
[1750567379009,41.41044175,135.53,135.51,24.55314354]
[1750567379409,30.52,135.53,135.51,24.55314354]
[1750567379703,10.89044175,135.52,135.51,24.55314354]
[1750567380224,41.41044175,135.53,135.51,24.55314354]
[1750567380914,30.52,135.53,135.51,24.55314354]
[1750567381233,10.89044175,135.53,135.51,24.55314354]
[1750567383125,41.41044175,135.54,135.52,18.64964886]
[1750567383328,17.57044175,135.55,135.53,5.90275215]
[1750567383513,48.09044175,135.55,135.53,5.90275215]
[1750567385426,6.68,135.55,135.53,5.90275215]
[1750567386013,6.68,135.55,135.53,16.7931939]
[1750567386219,10.89044175,135.57,135.54,18.64964886]
[1750567387119,37.18,135.58,135.54,29.54009061]
[1750567387332,48.07044175,135.58,135.55,5.90188122]
[1750567387518,10.89044175,135.56,135.54,18.64964886]
[1750567387836,41.39044175,135.56,135.54,18.64964886]
[1750567388337,30.5,135.56,135.54,18.64964886]
[1750567388500,41.39044175,135.56,135.54,18.64964886]
[1750567389637,41.39044175,135.56,135.55,24.55153008]
[1750567391330,41.39044175,135.56,135.55,18.64964886]
[1750567394816,41.39044175,135.56,135.54,5.90220321]
[1750567394817,41.39044175,135.56,135.48,10.89044175]
[1750567395114,10.89044175,135.52,135.49,44.64964886]
[1750567395315,41.39044175,135.52,135.49,44.64964886]
[1750567396531,41.39044175,135.52,135.5,5.90405904]
[1750567396735,30.5,135.52,135.51,18.64964886]
[1750567396932,41.39044175,135.52,135.51,18.64964886]
[1750567397147,10.89044175,135.52,135.51,18.64964886]
[1750567399946,10.89044175,135.52,135.51,5.90361353]
[1750567402536,17.57044175,135.52,135.45,5.90623846]
[1750567402745,17.57044175,135.52,135.49,18.64964886]
[1750567402746,10.89044175,135.5,135.49,18.64964886]
[1750567403256,10.89044175,135.5,135.46,18.64964886]
[1750567403435,10.89044175,135.49,135.46,18.64964886]
[1750567403758,41.37044175,135.49,135.46,18.64964886]
[1750567405751,41.37044175,135.49,135.48,18.64964886]
[1750567406651,41.37044175,135.49,135.48,5.90493061]
[1750567407355,30.48,135.49,135.48,5.90493061]
[1750567407561,5.50576286,135.51,135.48,5.90493061]
[1750567407562,41.37044175,135.51,135.48,5.90493061]
[1750567407747,10.89044175,135.51,135.48,5.90493061]
[1750567408250,10.89044175,135.51,135.49,18.64964886]
[1750567408836,10.89044175,135.51,135.5,24.5537079]
[1750567409036,49.68484175,135.52,135.5,24.5537079]
[1750567409465,6.1108,135.55,135.51,44.64964886]
[1750567409755,41.37044175,135.55,135.51,44.64964886]
[1750567409954,13.81958234,135.56,135.52,10.89044175]
[1750567410174,6.68,135.56,135.53,18.64964886]
[1750567410473,6.68,135.56,135.53,10.89044175]
[1750567410869,6.68,135.56,135.55,18.64964886]
[1750567411637,6.68,135.56,135.53,25.64713848]
[1750567411638,17.57044175,135.56,135.53,5.90266143]
[1750567411870,10.89044175,135.55,135.53,5.90266143]
[1750567412078,10.89044175,135.54,135.53,5.90266143]
[1750567417860,10.89044175,135.54,135.52,18.64964886]
[1750567418063,37.63490571,135.55,135.52,18.64964886]
[1750567418272,10.89044175,135.53,135.52,18.64964886]
[1750567419153,10.89044175,135.53,135.52,5.90318772]
[1750567419564,48.52534746,135.55,135.52,5.90318772]
[1750567420268,10.89044175,135.54,135.52,5.90318772]
[1750567421280,16.40094746,135.54,135.52,18.64964886]
[1750567422356,16.40094746,135.54,135.52,5.9030214]
[1750567423492,10.89044175,135.53,135.52,5.9030214]
[1750567424372,10.89044175,135.53,135.52,18.64964886]
[1750567424569,16.40094746,135.54,135.52,18.64964886]
[1750567424869,10.89044175,135.54,135.52,18.64964886]
[1750567427082,10.89044175,135.54,135.52,5.90275819]
[1750567427958,10.89044175,135.54,135.5,18.64964886]
[1750567428164,10.89044175,135.54,135.52,18.64964886]
[1750567428974,16.40370084,135.54,135.52,18.64964886]
[1750567430792,10.89044175,135.54,135.52,5.902919]
[1750567431590,10.89044175,135.53,135.51,5.90360258]
[1750567431779,10.89044175,135.52,135.51,24.55325144]
[1750567432589,10.89044175,135.52,135.51,18.64964886]
[1750567434478,30.46,135.53,135.51,18.64964886]
[1750567434686,10.89044175,135.52,135.51,18.64964886]
[1750567435996,16.40770357,135.52,135.51,18.64964886]
[1750567436192,10.89044175,135.52,135.51,18.64964886]
[1750567436577,16.40822351,135.52,135.51,18.64964886]
[1750567436783,10.89044175,135.52,135.51,18.64964886]
[1750567437190,16.40822351,135.52,135.51,18.64964886]
[1750567440400,5.51778176,135.52,135.51,24.5532722]
[1750567440604,5.51831686,135.52,135.51,24.5532722]
[1750567441892,16.40875861,135.52,135.51,24.5532722]
[1750567443084,41.35044175,135.53,135.51,24.5532722]
[1750567443281,5.51802279,135.53,135.52,18.64964886]
[1750567443485,16.40846454,135.54,135.52,18.64964886]
[1750567443684,46.86846454,135.54,135.52,18.64964886]
[1750567444505,46.86846454,135.54,135.53,24.55240101]
[1750567445125,46.86846454,135.54,135.53,18.64964886]
[1750567446000,46.86846454,135.54,135.47,25.6530984]
[1750567446206,10.89044175,135.52,135.48,18.64964886]
[1750567446495,41.33044175,135.52,135.48,44.64964886]
[1750567446909,30.44,135.52,135.48,65.31690601]
[1750567447125,41.33044175,135.52,135.48,76.20734776]
[1750567447722,41.33044175,135.52,135.48,65.31690601]
[1750567448931,46.84950386,135.52,135.48,65.31690601]
[1750567449135,41.33044175,135.52,135.48,65.31690601]
[1750567449719,46.84951621,135.52,135.48,65.31690601]
[1750567449921,41.33044175,135.52,135.48,65.31690601]
[1750567450523,46.85053103,135.52,135.48,65.31690601]
[1750567450723,41.33044175,135.52,135.48,65.31690601]
[1750567451318,46.85163152,135.52,135.48,65.31690601]
[1750567451536,41.33044175,135.52,135.48,65.31690601]
[1750567452218,46.85292867,135.52,135.48,65.31690601]
[1750567452402,41.33044175,135.52,135.48,65.31690601]
[1750567453527,46.8535413,135.52,135.48,65.31690601]
[1750567453726,41.33044175,135.52,135.48,65.31690601]
[1750567454127,41.33044175,135.52,135.48,50.55457947]
[1750567454632,30.44,135.52,135.48,61.44502122]
[1750567454932,10.89044175,135.53,135.48,61.44502122]
[1750567454933,10.89044175,135.53,135.48,76.20734776]
[1750567455439,5.52320605,135.53,135.52,18.64964886]
[1750567455612,41.33044175,135.54,135.53,5.90275215]
[1750567455929,5.52408226,135.54,135.53,24.55240101]
[1750567456253,100.60237386,135.58,135.53,24.55240101]
[1750567456254,23.89281561,135.58,135.54,18.64964886]
[1750567456410,5.5224541,135.57,135.54,29.54009061]
[1750567456611,6.64,135.58,135.54,29.54009061]
[1750567456816,5.52371807,135.57,135.54,18.64964886]
[1750567457032,16.41433634,135.56,135.54,18.64964886]
[1750567457248,10.89044175,135.55,135.54,18.64964886]
[1750567457407,10.89044175,135.55,135.53,5.90275215]
[1750567457926,5.52378967,135.54,135.53,24.55240101]
[1750567458519,5.52378967,135.54,135.53,18.64964886]
[1750567459539,5.52378967,135.54,135.53,24.55240101]
[1750567463710,5.52378967,135.55,135.54,18.64964886]
[1750567464131,5.52378967,135.55,135.54,5.90231665]
[1750567464442,5.52378967,135.56,135.54,5.90231665]
[1750567464643,41.33044175,135.57,135.54,5.90231665]
[1750567464952,5.52381034,135.56,135.54,5.90231665]
[1750567465132,41.33044175,135.57,135.54,5.90231665]
[1750567465328,5.52381034,135.56,135.54,5.90231665]
[1750567465523,47.97044175,135.58,135.54,5.90231665]
[1750567465722,5.52225491,135.57,135.54,5.90231665]
[1750567466332,47.97044175,135.58,135.54,5.90231665]
[1750567467123,5.5199415,135.57,135.54,5.90231665]
[1750567467434,47.97044175,135.58,135.54,5.90231665]
[1750567470232,16.40594551,135.57,135.54,5.90231665]
[1750567471629,10.89044175,135.57,135.54,5.90231665]
[1750567472849,37.08,135.58,135.54,5.90231665]
[1750567473061,10.89044175,135.57,135.54,5.90231665]
[1750567473724,10.89044175,135.57,135.55,18.64964886]
[1750567473927,10.89044175,135.57,135.56,24.55109471]
[1750567480469,17.53044175,135.58,135.57,18.64964886]
[1750567480764,6.64,135.58,135.57,18.64964886]
[1750567481269,6.64,135.58,135.56,5.90144585]
[1750567481456,17.53044175,135.58,135.56,5.90144585]
[1750567484474,17.53044175,135.58,135.57,5.90101054]
[1750567485369,6.64,135.58,135.57,5.90101054]
[1750567485544,6.64,135.58,135.57,24.5506594]
[1750567486564,10.89044175,135.61,135.58,18.64964886]
[1750567487358,10.89044175,135.6,135.58,18.64964886]
[1750567487876,10.89044175,135.59,135.58,18.64964886]
[1750567489857,10.89044175,135.59,135.58,24.55022416]
[1750567491958,41.29044175,135.6,135.58,24.55022416]
[1750567492473,10.89044175,135.6,135.58,24.55022416]
[1750567495684,10.89044175,135.59,135.58,24.55022416]
[1750567496985,10.89044175,135.59,135.57,18.64964886]
[1750567497769,10.89044175,135.58,135.57,18.64964886]
[1750567500513,10.89044175,135.58,135.5,6.5813]
[1750567500675,10.89044175,135.56,135.54,18.64964886]
[1750567501006,10.89044175,135.55,135.52,18.64964886]
[1750567501314,10.89044175,135.55,135.52,44.64964886]
[1750567501469,10.89044175,135.56,135.52,44.64964886]
[1750567502587,10.89044175,135.56,135.54,18.64964886]
[1750567503606,17.51044175,135.57,135.54,18.64964886]
[1750567504668,17.51044175,135.57,135.55,5.90188122]
[1750567505402,10.89044175,135.56,135.54,5.90221572]
[1750567505574,10.89044175,135.55,135.53,24.55227941]
[1750567507407,16.3923563,135.56,135.53,24.55227941]
[1750567509310,16.3923563,135.55,135.53,24.55227941]
[1750567509606,10.89044175,135.55,135.53,24.55227941]
[1750567509900,16.3923563,135.55,135.53,24.55227941]
[1750567510081,10.89044175,135.55,135.53,24.55227941]
[1750567510895,16.40736893,135.55,135.53,24.55227941]
[1750567511084,10.89044175,135.55,135.53,24.55227941]
[1750567511288,16.40736893,135.55,135.53,24.55227941]
[1750567511489,10.89044175,135.55,135.53,24.55227941]
[1750567511680,16.40736893,135.55,135.53,24.55227941]
[1750567511884,10.89044175,135.55,135.53,24.55227941]
[1750567512088,16.40736893,135.55,135.53,24.55227941]
[1750567512283,16.40736893,135.54,135.51,18.64964886]
[1750567512486,10.89044175,135.53,135.51,18.64964886]
[1750567513179,10.89044175,135.53,135.51,24.55321055]
[1750567514479,35.89692718,135.55,135.51,24.55321055]
[1750567514480,10.89044175,135.54,135.51,24.55321055]
[1750567514711,10.89044175,135.56,135.51,50.20271067]
[1750567514883,17.51044175,135.57,135.53,18.64964886]
[1750567515078,23.02138873,135.57,135.53,18.64964886]
[1750567515396,23.02138873,135.57,135.54,5.90231665]
[1750567516702,10.89044175,135.56,135.54,5.90231665]
[1750567518601,10.89044175,135.55,135.54,24.55196551]
[1750567519081,10.89044175,135.55,135.54,18.64964886]
[1750567522412,10.89044175,135.55,135.51,5.90355624]
[1750567522615,10.89044175,135.53,135.52,18.64964886]
[1750567523106,42.49047638,135.57,135.52,18.64964886]
[1750567523412,10.89044175,135.56,135.52,18.64964886]
[1750567524592,10.89044175,135.56,135.54,18.64964886]
[1750567526289,10.89044175,135.56,135.55,24.55153008]
[1750567528721,17.51044175,135.57,135.56,18.64964886]
[1750567529418,17.51044175,135.57,135.55,5.90188122]
[1750567529616,10.89044175,135.56,135.55,5.90188122]
[1750567530826,10.89044175,135.56,135.54,18.64964886]
[1750567531926,10.89044175,135.56,135.54,5.90211979]
[1750567533899,10.89044175,135.55,135.54,18.64964886]
[1750567535019,10.89044175,135.55,135.54,5.90231665]
[1750567535344,10.89044175,135.56,135.54,5.90231665]
[1750567535723,10.89044175,135.55,135.54,5.90231665]
[1750567536548,10.89044175,135.55,135.54,18.64964886]
[1750567538523,10.89044175,135.55,135.54,5.90231665]
[1750567538726,10.89044175,135.56,135.54,5.90231665]
[1750567540325,16.40711703,135.56,135.54,5.90231665]
[1750567540528,16.40711703,135.56,135.54,18.64964886]
[1750567542957,16.40711703,135.56,135.54,5.90195324]
[1750567543456,16.41106997,135.56,135.54,5.90195324]
[1750567543832,10.89044175,135.56,135.54,5.90195324]
[1750567544640,5.52410548,135.55,135.54,5.90195324]
[1750567545354,5.52410548,135.55,135.54,18.64964886]
[1750567546856,5.52410548,135.55,135.54,24.55196551]
[1750567547051,10.89044175,135.56,135.54,5.90231665]
[1750567547552,17.51044175,135.57,135.54,5.90231665]
[1750567547729,5.52411233,135.56,135.54,5.90231665]
[1750567547932,17.51044175,135.57,135.54,5.90231665]
[1750567548163,5.52411361,135.56,135.54,18.64964886]
[1750567548345,17.51044175,135.57,135.54,18.64964886]
[1750567548544,5.52433914,135.56,135.54,18.64964886]
[1750567548751,17.51044175,135.57,135.54,18.64964886]
[1750567548951,5.52433914,135.56,135.54,18.64964886]
[1750567549155,17.51044175,135.57,135.54,18.64964886]
[1750567549451,5.52433914,135.56,135.54,18.64964886]
[1750567549642,17.51044175,135.57,135.54,18.64964886]
[1750567549848,5.52456254,135.56,135.55,24.55153008]
[1750567551975,6.62,135.57,135.55,24.55153008]
[1750567552347,10.89044175,135.56,135.52,5.90318772]
[1750567552669,5.52421428,135.55,135.52,5.90318772]
[1750567552866,7.03285234,135.55,135.52,5.90318772]
[1750567553260,30.32,135.56,135.52,5.90318772]
[1750567553261,7.03285234,135.54,135.52,5.90318772]
[1750567554870,10.99083505,135.54,135.52,5.90318772]
[1750567556883,107.39982607,135.57,135.54,44.64964886]
[1750567556884,5.52453541,135.55,135.54,44.64964886]
[1750567557171,16.51537046,135.56,135.53,18.64964886]
[1750567557378,5.52453541,135.55,135.53,18.64964886]
[1750567557670,10.99083505,135.56,135.54,5.90231665]
[1750567557856,5.52489903,135.55,135.54,5.90231665]
[1750567561073,16.51573408,135.55,135.53,18.64964886]
[1750567561289,16.51573408,135.54,135.51,24.55318131]
[1750567561452,16.51573408,135.53,135.51,24.55318131]
[1750567561655,10.99083505,135.53,135.51,24.55318131]
[1750567563969,16.51650468,135.54,135.52,18.64964886]
[1750567564172,10.99083505,135.54,135.52,18.64964886]
[1750567565147,1.6209,135.58,135.54,18.64964886]
[1750567565148,12.61173505,135.58,135.54,18.64964886]
[1750567565303,5.52439762,135.57,135.54,18.64964886]
[1750567565504,10.99083505,135.57,135.54,18.64964886]
[1750567565822,1.6209,135.58,135.54,18.64964886]
[1750567565823,10.99083505,135.55,135.54,18.64964886]
[1750567566720,16.51570182,135.55,135.54,18.64964886]
[1750567567432,16.51570182,135.55,135.54,5.90231665]
[1750567568438,5.52486677,135.55,135.53,5.90275215]
[1750567568642,10.99083505,135.56,135.53,5.90275215]
[1750567568932,5.52618867,135.55,135.53,5.90275215]
[1750567569112,10.99083505,135.56,135.53,5.90275215]
[1750567569948,10.99083505,135.55,135.53,5.90275215]
[1750567573544,10.99083505,135.56,135.54,18.64964886]
[1750567573909,6.89572607,135.59,135.56,18.64964886]
[1750567574107,5.52693388,135.58,135.56,18.64964886]
[1750567574421,10.99083505,135.59,135.56,18.64964886]
[1750567574630,5.52483257,135.58,135.56,18.64964886]
[1750567574823,10.99083505,135.59,135.56,18.64964886]
[1750567575021,16.51563569,135.58,135.56,18.64964886]
[1750567575228,10.99083505,135.58,135.56,18.64964886]
[1750567575733,10.99083505,135.58,135.57,24.5506594]
[1750567575938,16.51447598,135.58,135.57,24.5506594]
[1750567576747,16.51447598,135.58,135.57,18.64964886]
[1750567578732,5.52364093,135.58,135.57,24.5506594]
[1750567578933,10.99083505,135.59,135.57,24.5506594]
[1750567579133,5.52364093,135.58,135.57,24.5506594]
[1750567579438,5.52135591,135.6,135.58,44.64964886]
[1750567579623,17.04595526,135.61,135.6,44.64964886]
[1750567579829,17.04595526,135.61,135.6,55.64048391]